Workbook

Sheet capa

Sheet Projetos 2020
B5: Indicadores da Pró-reitoria de Pesquisa, Pós-graduação e Inovação
B6: Projetos de pesquisa em execução e finalizados
G7: Histórico de Projetos de Pesquisa
H8: Página Inicial
B11: Objetivo: Informar o número de Projetos de Pesquisa em execução e finalizados no ano de 2020
B14: Quadro - Quantidade de projetos de pesquisa em execução e finalizados - por Unidade Universitária
B15: Unidades Universitárias | C15: 2020*
C16: 1 semestre em execução | D16: 2 semestre em execução | E16: Finalizados em 2020
B17: Amambai | C17: 15 | D17: 13 | E17: 4
B18: Aquidauana | C18: 29 | D18: 26 | E18: 11
B19: Campo Grande | C19: 56 | D19: 51 | E19: 15
B20: Cassilândia | C20: 22 | D20: 23 | E20: 2
B21: Coxim | C21: 3 | D21: 3 | E21: -
B22: Dourados | C22: 99 | D22: 95 | E22: 24
B23: Glória de Dourados | C23: 3 | D23: 2 | E23: 1
B24: Ivinhema | C24: 2 | D24: 2 | E24: 1
B25: Jardim | C25: 9 | D25: 9 | E25: 2
B26: Maracaju | C26: 1 | D26: 3 | E26: -
B27: Mundo Novo | C27: 5 | D27: 5 | E27: 2
B28: Naviraí | C28: 19 | D28: 17 | E28: 3
B29: Nova Andradina | C29: 10 | D29: 9 | E29: 1
B30: Paranaíba | C30: 32 | D30: 32 | E30: 4
B31: Ponta Porã | C31: 10 | D31: 10 | E31: 1
B32: Total | C32: =SUM(C17:C31) -> 315 | D32: =SUM(D17:D31) -> 300 | E32: =SUM(E17:E31) -> 71
B33: *Refere-se ao ano de execução ou finalização dos projetos cadastrados na Divisão de Pesquisa
B35: Quadro - Quantidade de projetos de pesquisa em execução e finalizados - por Área de conhecimento
B36: Áreas de Conhecimento | C36: 2020*
C37: 1 semestre em execução | D37: 2 semestre em execução | E37: Finalizados
B38: Ciências Exatas e da Terra | C38: 57 | D38: 53 | E38: 14
B39: Ciências Biológicas | C39: 19 | D39: 18 | E39: 5
B40: Engenharias | C40: 10 | D40: 8 | E40: 3
B41: Ciências da Saúde | C41: 20 | D41: 18 | E41: 9
B42: Ciências Agrárias | C42: 52 | D42: 48 | E42: 14
B43: Ciências Sociais Aplicadas | C43: 43 | D43: 45 | E43: 5
B44: Ciências Humanas | C44: 75 | D44: 74 | E44: 13
B45: Linguística, Letras e Artes | C45: 39 | D45: 36 | E45: 9
B46: Total | C46: 315 | D46: =SUM(D38:D45) -> 300 | E46: 71
B47: *Refere-se ao ano de execução ou finalização dos projetos cadastrados na Divisão de Pesquisa
B51: Quadro - Quantidade de projetos de pesquisa em execução e finalizados - por Curso/CEPEXs
B52: Unidade Universitária | C52: Curso/Centro* | E52: 2020**
E53: 1º semestre em execução | F53: 2º semestre em execução | G53: Finalizados 1º sem | H53: Finalizados 2º sem
B54: Amambai | C54: Ciências Sociais | E54: 5 | F54: 4 | G54: 1 | H54: 1
C55: História | E55: 10 | F55: 9 | G55: 1 | H55: 1
B56: Aquidauana | C56: Agronomia | E56: 10 | F56: 9 | G56: 3 | H56: 1
C57: Engenharia Florestal | E57: 4 | F57: 3 | G57: 3 | H57: 1
C58: Zootecnia | E58: 15 | F58: 14 | G58: 1 | H58: 2
C59: CECA - Centro de Excelência em Ciência Animal do Cerrado e Pantanal | E59: - | G59: -
C60: CEMAP - Centro de Estudos em Meio Ambiente, Áreas Protegidas e Desenvolvimento Sustentável | E60: - | G60: -
C61: CEPROV - Centro de Estudos em Produção Vegetal | E61: - | G61: -
B62: Campo Grande | C62: Artes Cênicas | E62: 5 | F62: 4 | G62: - | H62: 1
C63: Geografia Bacharel | E63: 13 | F63: 12 | G63: 1 | H63: 1
C64: Geografia Licenciatura
C65: Letras Bacharel | E65: 19 | F65: 19 | G65: 4
C66: Letras Port./Inglês | G66: -
C67: Letras Port./Esp. | G67: -
C68: Medicina | E68: 11 | F68: 8 | G68: 4 | H68: 3
C69: Pedagogia | E69: 6 | F69: 6 | G69: -
C70: Turismo | E70: 2 | F70: 2 | G70: 1
C71: Mestrado Letras | E71: - | G71: -
C72: CELMI - Centro de Pesquisa, Ensino e Extensão em Educação, Linguagem, Memória e Identidade | E72: - | G72: -
B73: Cassilândia | C73: Agronomia | E73: 17 | F73: 17 | G73: 1
C74: Letras | E74: 1 | F74: 2 | G74: -
C75: Matemática | E75: 4 | F75: 4 | G75: 1
C76: CEDESU-Centro de Desenvolvimento Sustentável do Bolsão sulmatogrossense | E76: - | G76: -
B77: Coxim | C77: Ciências Biológicas | E77: 1 | F77: 1 | G77: -
C78: Gestão Ambiental | E78: 2 | F78: 2 | G78: -
B79: Dourados | C79: Ciências da Computação | E79: 6 | F79: 4 | G79: 2 | H79: 1
C80: Ciências Biológicas Bacharel | E80: 10 | F80: 10 | G80: 2
C81: Ciências Biológicas Licenc. | G81: -
C82: Direito | E82: 7 | F82: 7 | G82: -
C83: Enfermagem | E83: 11 | F83: 12 | G83: 2
C84: Engenharia Ambiental | E84: 11 | F84: 11 | G84: -
C85: Engenharia Física | E85: 10 | F85: 9 | G85: 2 | H85: 1
C86: Física | E86: 4 | F86: 3 | G86: 1 | H86: 1
C87: Letras Port./Inglês | E87: 13 | F87: 12 | G87: 4
C88: Letras Port./ Espanhol | G88: - | H88: 1
C89: Matemática | E89: 4 | F89: 4 | G89: -
C90: Pedagogia | E90: 8 | F90: 8 | G90: 2
C91: Química | E91: 8 | F91: 8 | G91: 2 | H91: 2
C92: Química Industrial | E92: - | G92: 1
C93: Sistema De Informação | E93: 3 | F93: 3 | G93: -
C94: Turismo | E94: 4 | F94: 4 | G94: -
C95: CEPEMAT – Centro de Pesquisas em Materias | E95: - | G95: -
C96: CEPES - Centro de Ensino, Pesquisa e Extensão em Educação em Saúde | E96: - | G96: -
C97: CEPEGRE - Centro de Estudos, Pesquisa e Extensão em Educação, Gênero, Raça e Etnia | E97: - | G97: -
C98: CERNA - Centro de Estudos em Recursos Naturais | E98: - | G98: -
B99: Glória de Dourados | C99: Produção Sucroalcooleira | E99: - | G99: -
C100: Tecnologia em Agroecologia | E100: 1 | F100: 1 | G100: -
C101: Tecnologia em Produção | E101: 2 | F101: 1 | G101: - | H101: 1
B102: Ivinhema | C102: Ciências Biológicas Bacharel | E102: 2 | F102: 2 | G102: -
C103: Ciências Biológicas Licenc. | G103: 1
B104: Jardim | C104: Geografia Licenciatura | E104: 6 | F104: 6 | G104: -
C105: Letras | E105: 3 | F105: 3 | G105: 1 | H105: 1
G106: -
B107: Maracaju | C107: Administração | E107: - | F107: 2 | G107: -
C108: Pedagogia | E108: 1 | F108: 1 | G108: -
B109: Mundo Novo | C109: Ciências Biológicas Licenc. | E109: 3 | F109: 2 | G109: - | H109: 1
C110: Tecnologia Gestão Ambiental | E110: 2 | F110: 3 | G110: 1
B111: Naviraí | C111: Química | E111: 9 | F111: 9 | G111: 1
C112: Engenharia De Alimentos | E112: 3 | F112: 1 | G112: - | H112: 2
C113: Direito | E113: 7 | F113: 7 | G113: -
C114: CDTEQ - Centro de Desenvolvimento em Tecnologias Químicas | E114: - | G114: -
B115: Nova Andradina | C115: Matemática | E115: 7 | F115: 6 | G115: 1
C116: Computação | E116: 3 | F116: 3 | G116: -
B117: Paranaíba | C117: Ciências Sociais Bacharel. | E117: 8 | F117: 8 | G117: - | H117: 1
C118: Ciências Sociais Licenciatura | G118: -
C119: Direito | E119: 15 | F119: 15 | G119: 3
C120: Pedagogia | E120: 9 | F120: 9 | G120: -
C121: CEPEED - Centro de Pesquisa, Ensino e Extensão em Educação | E121: - | G121: -
B122: Ponta Porã | C122: Administração de Empresas | E122: 2 | F122: 2 | G122: -
C123: Ciências Contábeis | E123: 3 | F123: 3 | G123: 1
C124: Ciências Econômicas | E124: 2 | F124: 2 | G124: -
C125: Mestrado em Desenvolvimento Regional e de Sistemas Produtivos | E125: 3 | F125: 3 | G125: =SUM(G54:G124) -> 48
B126: Total | E126: =SUM(E54:E125) -> 315 | F126: =SUM(F54:F125) -> 300 | G126: 48 | H126: =SUM(H54:H125) -> 23
B127: *Os docentes tem a opção de cadastrar seus projetos em cursos de graduação, pós-graduação ou em Centros de Pesquisa
B128: **Refere-se ao ano de execução ou finalização dos projetos cadastrados na Divisão de Pesquisa
B130: Fonte: Divisão de Pesquisa, janeiro 2021

Sheet Projetos 2020 por categoria
B5: Indicadores da Pró-reitoria de Pesquisa, Pós-graduação e Inovação
B6: Detalhamento por tipo de projetos de pesquisa
J7: Página Inicial
B11: Objetivo: Informar a quantidade de Projetos de Pesquisa financiamentos e com cooperação internacional
B14: Quadro - Quantidade de projetos de pesquisa financiados e projetos com cooperação internacional - por Unidade Universitária
B15: Unidades Universitárias | C15: 2020*
C16: Interinstitucional com financiamento | D16: Institucional com financiamento | E16: Cooperação internacional
B17: Amambai | C17: - | D17: - | E17: -
B18: Aquidauana | C18: 6 | D18: 3 | E18: 1
B19: Campo Grande | C19: 3 | D19: 3 | E19: -
B20: Cassilândia | C20: 3 | D20: - | E20: -
B21: Coxim | C21: - | D21: - | E21: -
B22: Dourados | C22: 11 | D22: 9 | E22: -
B23: Glória de Dourados | C23: - | D23: - | E23: -
B24: Ivinhema | C24: - | D24: - | E24: -
B25: Jardim | D25: 2 | E25: -
B26: Maracaju | C26: - | D26: - | E26: -
B27: Mundo Novo | C27: 1 | D27: - | E27: -
B28: Naviraí | C28: 1 | D28: 1 | E28: -
B29: Nova Andradina | C29: - | D29: - | E29: -
B30: Paranaíba | C30: - | D30: - | E30: -
B31: Ponta Porã | C31: - | D31: 1 | E31: -
B32: Total | C32: =SUM(C17:C31) -> 25 | D32: =SUM(D17:D31) -> 19 | E32: =SUM(E17:E31) -> 1
B33: *Refere-se ao ano de cadastramento do projeto na Divisão de Pesquisa
B37: Quadro - Quantidade de projetos de pesquisa financiados e projetos com cooperação internacional - por área de conhecimento
B38: Áreas de Conhecimento | C38: 2020*
C39: Interinstitucional com financiamento | D39: Institucional com financiamento | E39: Cooperação internacional
B40: Ciências Exatas e da Terra | C40: 2 | D40: 3 | E40: -
B41: Ciências Biológicas | C41: 3 | D41: 3 | E41: -
B42: Engenharias | C42: 4 | D42: 5 | E42: -
B43: Ciências da Saúde | C43: 1 | D43: 2 | E43: -
B44: Ciências Agrárias | C44: 9 | D44: 2 | E44: 1
B45: Ciências Sociais Aplicadas | C45: - | D45: 1 | E45: -
B46: Ciências Humanas | C46: 5 | D46: 3 | E46: -
B47: Linguística, Letras e Artes | C47: 1 | D47: - | E47: -
B48: Total | C48: =SUM(C40:C47) -> 25 | D48: =SUM(D40:D47) -> 19 | E48: =SUM(E40:E47) -> 1
B49: *Refere-se ao ano de cadastramento do projeto na Divisão de Pesquisa
B51: Fonte: Divisão de Pesquisa, janeiro 2021

Sheet recursos proj individuais
B5: Indicadores da Pró-reitoria de Pesquisa, Pós-graduação e Inovação
B6: Volume de recursos financeiros captados por projetos de pesquisa individuais
F8: Página Inicial
B11: Objetivo: Informar o volume de recursos financeiros captados por projetos de pesquisa individuais
B13: Quadro - Recursos financeiros referentes a projetos individuais - por Unidade Universitária
B14: Unidades Universitárias | C14: Ano de cadastro
C15: 2016 | D15: 2017 | E15: 2018 | F15: 2019 | G15: 2020
B16: Amambai | C16: - | D16: - | E16: - | F16: - | G16: -
B17: Aquidauana | C17: 284852 | D17: 33400 | E17: 1620068.22 | F17: - | G17: 1829324.9
B18: Campo Grande | C18: 58118 | D18: 67927.1 | E18: 9809.1 | F18: - | G18: 549328.8
B19: Cassilândia | C19: 39600 | D19: - | E19: 282250 | F19: - | G19: 259312
B20: Coxim | C20: - | D20: - | E20: - | F20: - | G20: -
B21: Dourados | C21: 342500 | D21: 472500.4 | E21: 863160.4 | F21: 39600 | G21: 4360458.06
B22: Glória de Dourados | C22: - | D22: - | E22: - | F22: - | G22: -
B23: Ivinhema | C23: - | D23: - | E23: - | F23: - | G23: -
B24: Jardim | C24: - | D24: - | E24: 90000 | F24: 43808.1 | G24: 133808.1
B25: Maracaju | C25: - | D25: - | E25: - | F25: - | G25: -
B26: Mundo Novo | C26: - | D26: - | E26: - | F26: - | G26: 7872714.34
B27: Naviraí | C27: 21000 | D27: - | E27: 66300 | F27: - | G27: 116300
B28: Nova Andradina | C28: - | D28: - | E28: - | F28: - | G28: -
B29: Paranaíba | C29: - | D29: - | E29: 22900 | F29: - | G29: 22900
B30: Ponta Porã | C30: - | D30: - | E30: 35000 | F30: - | G30: 35000
B31: Total | C31: =SUM(C16:C30) -> 746070 | D31: =SUM(D16:D30) -> 573827.5 | E31: =SUM(E16:E30) -> 2989487.72 | F31: =SUM(F16:F30) -> 83408.1 | G31: =SUM(G16:G30) -> 15179146.2
B35: Quadro - Recursos financeiros referentes a projetos individuais - por área de conhecimento
B36: Áreas de Conhecimento | C36: Ano de cadastro*
C37: 2016 | D37: 2017 | E37: 2018 | F37: 2019 | G37: 2020
B38: Ciências Exatas e da Terra | C38: 21000 | D38: 130000 | E38: 324900 | F38: 83408.1 | G38: 1365563.1
B39: Ciências Biológicas | C39: 24000 | D39: 24000 | E39: 256060 | F39: - | G39: 118060
B40: Engenharias | C40: - | D40: - | E40: - | F40: - | G40: 3001702.66
B41: Ciências da Saúde | C41: - | D41: 9809.1 | E41: 39809.1 | F41: - | G41: 778331.4
B42: Ciências Agrárias | C42: 324452 | D42: 33400 | E42: 1902318.22 | F42: - | G42: 9361351.24
B43: Ciências Sociais Aplicadas | C43: - | D43: - | E43: 35000 | F43: - | G43: -
B44: Ciências Humanas | C44: 348118 | D44: 348118.4 | E44: 431400 | F44: - | G44: 528310.4
B45: Linguística, Letras e Artes | C45: 28500 | D45: 28500 | E45: - | F45: - | G45: 25827.4
B46: Total | C46: =SUM(C38:C45) -> 746070 | D46: =SUM(D38:D45) -> 573827.5 | E46: =SUM(E38:E45) -> 2989487.32 | F46: =SUM(F38:F45) -> 83408.1 | G46: 15179146.2
B48: Fonte: Divisão de Pesquisa, janeiro 2021

Sheet Resumo projetos
B5: Indicadores da Pró-reitoria de Pesquisa, Pós-graduação e Inovação
B6: Resumo dos dados sobre projetos de pesquisa
H7: Gráficos
H8: Página Inicial
B10: Objetivo: Apresentar a série histórica envolvendo dados dos projetos de pesquisa
B12: Quadro - Histórico do número de projetos de pesquisa - por categoria e ano de cadastro
B13: Categoria | C13: 2016 | D13: 2017 | E13: 2018 | F13: 2019 | G13: 2020
B14: Projetos sem financiamento | C14: 380 | D14: 286 | E14: 272 | F14: 295 | G14: 255
B15: Projetos com cooperação internacional | C15: 1 | D15: - | E15: 2 | F15: - | G15: 1
B16: Projetos com financiamento | C16: 14 | D16: 9 | E16: 39 | F16: 9 | G16: 44
B19: Quadro - Quantidade de projetos de pesquisa em execução e finalizados
B20: Categoria | C20: 2016 | D20: 2017 | E20: 2018 | F20: 2019 | G20: 2020
B21: Projetos em execução | C21: 380 | D21: 286 | E21: 272 | F21: 295 | G21: 300
B22: Projetos finalizados | C22: 69 | D22: 98 | E22: 83 | F22: 47 | G22: 71
B23: *quantidade referente aos projetos cadastrados até 12/2020
B25: Quadro - Volume de recursos por projetos individuais
B26: Categoria | C26: 2016 | D26: 2017 | E26: 2018 | F26: 2019 | G26: 2020
B27: Projetos individuais | C27: 746070 | D27: 573827.5 | E27: 2989487.32 | F27: 83408.1 | G27: 15179146.2
B30: Fonte: Divisão de Pesquisa, janeiro 2021

Sheet Gráficos projetos
B5: Indicadores da Pró-reitoria de Pesquisa, Pós-graduação e Inovação
E6: Gráficos da evolução das quantidades/recursos de Projetos de Pesquisa
O7: Página Inicial
B10: Evolução da quantidade de projetos de pesquisa - por categoria e ano de cadastro | J10: Evolução da quantidade de projetos de pesquisa em execução e finalizados
B28: Evolução do volume de recursos captados por projetos individuais

Sheet volume e producao qualificada
B5: Indicadores da Pró-reitoria de Pesquisa, Pós-graduação e Inovação
B6: Produção intelectual: Volume de Publicação qualificada
F8: Página Inicial
B10: Objetivo: Informar a quantidade de produção intelectual docente e publicações qualificadas em periódicos (JCR)
B13: Quadro - Quantidade de produção intelectual docente em 2020 - por área de conhecimento (área de produção)
B14: Unidades Universitárias | C14: Quantidade
C15: artigos publicados e aceitos em periódicos | D15: livros | E15: capítulos de livro | F15: patentes e registros | G15: produto
B16: Ciências Exatas e da Terra | C16: 10 | D16: - | E16: 4 | F16: - | G16: -
B17: Ciências Biológicas | C17: 15 | D17: - | E17: 4 | F17: - | G17: -
B18: Engenharias | C18: 5 | D18: - | E18: 1 | F18: - | G18: -
B19: Ciências da Saúde | C19: 7 | D19: - | E19: - | F19: - | G19: 1
B20: Ciências Agrárias | C20: 29 | D20: - | E20: 9 | F20: - | G20: -
B21: Ciências Sociais Aplicadas | C21: 1 | D21: 2 | E21: 1 | F21: - | G21: -
B22: Ciências Humanas | C22: 24 | D22: 5 | E22: 12 | F22: - | G22: -
B23: Linguística, Letras e Artes | C23: 21 | D23: 6 | E23: 16 | F23: - | G23: -
B24: Outra | C24: 2 | D24: - | E24: - | F24: - | G24: -
B25: Não informados | C25: 461 | D25: 14 | E25: 138 | F25: - | G25: 2
B26: Total | C26: =SUM(C16:C25) -> 575 | D26: =SUM(D16:D25) -> 27 | E26: =SUM(E16:E25) -> 185 | F26: - | G26: =SUM(G16:G25) -> 3
B30: Quadro - Quantidade de publicações docente em periódicos no ano de 2020 - por fator de impacto e área de conhecimento (área de produção)
B32: Áreas de conhecimento | C32: Fator de impacto (JCR 2019)
C33: 0 | D33: 0,01-0,5 | E33: 0,5-1,0 | F33: 1,0-3,0 | G33: acima de 3,0
B34: Ciências Exatas e da Terra | C34: 7 | D34: - | E34: - | F34: 1 | G34: 2
B35: Ciências Biológicas | C35: 7 | D35: - | E35: - | F35: 3 | G35: 5
B36: Engenharias | C36: 5 | D36: - | E36: - | F36: - | G36: -
B37: Ciências da Saúde | C37: 7 | D37: - | E37: - | F37: - | G37: -
B38: Ciências Agrárias | C38: 22 | D38: - | E38: - | F38: 4 | G38: 3
B39: Ciências Sociais Aplicadas | C39: 1 | D39: - | E39: - | F39: - | G39: -
B40: Ciências Humanas | C40: 24 | D40: - | E40: - | F40: - | G40: -
B41: Linguística, Letras e Artes | C41: 21 | D41: - | E41: - | F41: - | G41: -
B42: Outra | C42: 1 | D42: - | E42: - | F42: 1 | G42: -
B43: Não informados | C43: 369 | D43: - | E43: 12 | F43: 49 | G43: 31
B44: Total | C44: =SUM(C34:C43) -> 464 | D44: =SUM(D34:D43) -> 0 | E44: =SUM(E34:E43) -> 12 | F44: =SUM(F34:F43) -> 58 | G44: =SUM(G34:G43) -> 41
B45: Total geral | C45: =SUM(C44:G44) -> 575
B46: Fonte: Stela Experta (janeiro 2021)
B49: OBS: As produções se referem a docentes com vínculo institucional com a UEMS, exceto: externo, exonerado, falecido e vacância (relatórios emitidos individualmente por área)

Sheet grupos de pesquisa
B5: Indicadores da Pró-reitoria de Pesquisa, Pós-graduação e Inovação
B6: Grupos de pesquisa na UEMS
F8: Página Inicial
B10: Objetivo: Indicar a quantidade de grupos de pesquisa cadastrados no diretório do CNPq, por grande área de conhecimento
B12: Quadro - Quantidade de grupos de pesquisa - por área de conhecimento
B13: Áreas de Conhecimento | C13: 2018 | E13: 2019 | G13: 2020
C14: Certificados* | D14: Em preenchimento | E14: Certificados* | F14: Em preenchimento | G14: Certificados* | H14: Em preenchimento
B15: Ciências Exatas e da Terra | C15: 14 | D15: - | E15: 14 | F15: 1 | G15: 9 | H15: 1
B16: Ciências Biológicas | C16: 7 | D16: - | E16: 5 | F16: 1 | G16: 3 | H16: 1
B17: Engenharias | C17: 1 | D17: - | E17: 1 | F17: - | G17: 2 | H17: -
B18: Ciências da Saúde | C18: 7 | D18: - | E18: 5 | F18: 3 | G18: 6 | H18: 1
B19: Ciências Agrárias | C19: 16 | D19: 1 | E19: 18 | F19: 1 | G19: 22 | H19: 5
B20: Ciências Sociais Aplicadas | C20: 9 | D20: 2 | E20: 7 | F20: - | G20: 13 | H20: 1
B21: Ciências Humanas | C21: 25 | D21: - | E21: 23 | F21: - | G21: 22 | H21: 5
B22: Linguística, Letras e Artes | C22: 15 | D22: 4 | E22: 18 | F22: 4 | G22: 17 | H22: 5
B23: Total | C23: =SUM(C15:C22) -> 94 | D23: 7 | E23: 91 | F23: 10 | G23: 94 | H23: 19
B25: * certificados com ou sem atualização há mais de 12 meses
B27: Fonte: Diretório de grupos de pesquisa/CNPq

Sheet bolsista produtividade
B5: Indicadores da Pró-reitoria de Pesquisa, Pós-graduação e Inovação
B6: Bolsistas Produtividade em Pesquisa (PQ)
F8: Página Inicial
B10: Objetivo: Indicar o número de docentes contemplados com bolsa Produtividade em Pesquisa (PQ) do CNPq
B13: Quadro - Quantidade de bolsistas Produtividade em Pesquisa
B14: Áreas de Conhecimento | C14: Ano de concessão
C15: 2017 | D15: 2018 | E15: 2019 | F15: 2020
B16: Ciências Exatas e da Terra | C16: 3 | D16: 3 | E16: 3 | F16: 4
B17: Ciências Biológicas | C17: 2 | D17: 2 | E17: 1 | F17: 2
B18: Engenharias | C18: - | D18: - | E18: - | F18: -
B19: Ciências da Saúde | C19: - | D19: - | E19: - | F19: 1
B20: Ciências Agrárias | C20: 2 | D20: 2 | E20: 2 | F20: 2
B21: Ciências Sociais Aplicadas | C21: - | D21: - | E21: - | F21: -
B22: Ciências Humanas | C22: - | D22: - | E22: - | F22: -
B23: Linguística, Letras e Artes | C23: - | D23: - | E23: - | F23: -
B24: TOTAL | C24: =SUM(C16:C23) -> 7 | D24: =SUM(D16:D23) -> 7 | E24: =SUM(E16:E23) -> 6 | F24: 9
B28: Fonte: Divisão de Pesquisa/CNPq, janeiro 2021

Sheet alunos em proj IC
B5: Indicadores da Pró-reitoria de Pesquisa, Pós-graduação e Inovação
B6: Participação de Alunos da Graduação em Projetos de Iniciação Científica
H7: Histórico Geral IC
H8: Página Inicial
B11: Objetivo: Aferir o envolvimento do corpo discente da UEMS em projetos de IC.
B13: Fórmula de Cálculo: IPAAtPq = TAB/TTAx100
B15: TAB = n° total de alunos bolsistas (PIBIC CNPq/UEMS, PIBIT CNPq, PIBIC AAF) e IC sem bolsa
B16: TTA = nº total de alunos de graduação matriculados na Unidade Universitária
B19: Quadro - Percentual de envolvimento dos alunos da graduação em projetos de IC
B20: Unidades Universitárias | C20: 2016 (%) | D20: 2017 (%) | E20: 2018(%) | F20: 2019*(%) | G20: 2020**(%)
B21: Aquidauana | C21: =(67/628)*100 -> 10.66878981 | D21: =(59/632)*100 -> 9.335443038 | E21: =(68/654)*100 -> 10.39755352 | F21: =(74/623)*100 -> 11.87800963 | G21: =64/586 -> 0.1092150171
B22: Amambai | C22: =(15/201)*100 -> 7.462686567 | D22: =(4/213)*100 -> 1.877934272 | E22: =(11/216)*100 -> 5.092592593 | F22: =(8/212)*100 -> 3.773584906 | G22: =6/208 -> 0.02884615385
B23: Campo Grande | C23: =(45/1016)*100 -> 4.429133858 | D23: =(59/1032)*100 -> 5.717054264 | E23: =(63/1180)*100 -> 5.338983051 | F23: =(64/1250)*100 -> 5.12 | G23: =74/1324 -> 0.05589123867
B24: Cassilândia | C24: =(49/369)*100 -> 13.27913279 | D24: =(32/402)*100 -> 7.960199005 | E24: =(29/393)*100 -> 7.37913486 | F24: =(43/384)*100 -> 11.19791667 | G24: =37/405 -> 0.09135802469
B25: Coxim | C25: =(1/148)*100 -> 0.6756756757 | D25: =(1/166)*100 -> 0.6024096386 | E25: - | F25: =(3/124)*100 -> 2.419354839 | G25: =1/74 -> 0.01351351351
B26: Dourados | C26: =(123/1750)*100 -> 7.028571429 | D26: =(108/1969)*100 -> 5.485017776 | E26: =(105/1967)*100 -> 5.338078292 | F26: =(116/1949)*100 -> 5.951770139 | G26: =125/1921 -> 0.0650702759
B27: Glória de Dourados | C27: =(1/108)*100 -> 0.9259259259 | D27: =(1/48)*100 -> 2.083333333 | E27: =(3/151)*100 -> 1.986754967 | F27: =(2/88)*100 -> 2.272727273 | G27: 2.56
B28: Ivinhema | C28: =(4/116)*100 -> 3.448275862 | D28: =(3/116)*100 -> 2.586206897 | E28: =(3/110)*100 -> 2.727272727 | F28: =(2/82)*100 -> 2.43902439 | G28: =7/78 -> 0.08974358974
B29: Jardim | C29: =(9/292)*100 -> 3.082191781 | D29: =(7/300)*100 -> 2.333333333 | E29: =(9/313)*100 -> 2.875399361 | F29: =(7/306)*100 -> 2.287581699 | G29: =4/275 -> 0.01454545455
B30: Maracaju | C30: - | D30: - | E30: - | F30: - | G30: -
B31: Mundo Novo | C31: =(17/199)*100 -> 8.542713568 | D31: =(17/218)*100 -> 7.798165138 | E31: =(23/238)*100 -> 9.663865546 | F31: =(23/203)*100 -> 11.33004926 | G31: =22/186 -> 0.1182795699
B32: Naviraí | C32: =(26/457)*100 -> 5.689277899 | D32: =(26/471)*100 -> 5.520169851 | E32: =(31/484)*100 -> 6.404958678 | F32: =(33/498)*100 -> 6.626506024 | G32: =45/480 -> 0.09375
B33: Nova Andradina | C33: =(4/207)*100 -> 1.93236715 | D33: =(2/201)*100 -> 0.9950248756 | E33: =(5/202)*100 -> 2.475247525 | F33: =(5/169)*100 -> 2.958579882 | G33: 3.23
B34: Paranaíba | C34: =(26/673)*100 -> 3.863298663 | D34: =(22/665)*100 -> 3.308270677 | E34: =(22/661)*100 -> 3.328290469 | F34: =(46/642)*100 -> 7.165109034 | G34: =43/624 -> 0.06891025641
B35: Ponta Porã | C35: =(9/453)*100 -> 1.986754967 | D35: =(13/483)*100 -> 2.691511387 | E35: =(10/447)*100 -> 2.237136465 | F35: =(6/437)*100 -> 1.372997712 | G35: =1/385 -> 0.002597402597
B36: Total | C36: =SUM(C21:C35) -> 73.01479595 | D36: =SUM(D21:D35) -> 58.29407348 | E36: =SUM(E21:E35) -> 65.24526805 | F36: =SUM(F21:F35) -> 76.79321146 | G36: 79.29
B37: *considerando o número de matriculados até 03/04/2019
B38: **dados de 2020 matriculados até 05/08/2020
B40: Fonte: Divisão de Pesquisa, janeiro de 2021

Sheet IC Sem bolsa
B5: Indicadores da Pró-reitoria de Pesquisa, Pós-graduação e Inovação
B6: Detalhamento IC sem bolsa
H7: Histórico Geral IC
H8: Página Inicial
B10: Objetivo: Informar o número de alunos na graduação envolvidos com projetos de IC sem bolsa
B13: Quadro - Quantitativo de alunos de graduação que participam da Modalidade IC sem bolsa - por Unidade Universitária
B14: Unidades Universitárias | C14: 2020
C15: Execução | D15: Cancelados | E15: Finalizados
B16: Aquidauana | C16: 13 | D16: 1 | E16: 4
B17: Amambai | C17: - | D17: 1 | E17: 1
B18: Campo Grande | C18: 16 | D18: 2 | E18: 8
B19: Cassilândia | C19: 1 | D19: 1 | E19: 1
B20: Coxim | C20: - | D20: - | E20: -
B21: Dourados | C21: 25 | D21: 2 | E21: 8
B22: Glória de Dourados | C22: - | D22: - | E22: -
B23: Ivinhema | C23: 5 | D23: 1 | E23: -
B24: Jardim | C24: 1 | D24: - | E24: 1
B25: Maracaju | C25: - | D25: - | E25: -
B26: Mundo Novo | C26: 2 | D26: 2 | E26: 2
B27: Naviraí | C27: 9 | D27: - | E27: 5
B28: Nova Andradina | C28: - | D28: - | E28: -
B29: Paranaíba | C29: 10 | D29: - | E29: 4
B30: Ponta Porã | C30: 1 | D30: - | E30: -
B31: Total | C31: =SUM(C16:C30) -> 83 | D31: =SUM(D16:D30) -> 10 | E31: =SUM(E16:E30) -> 34
B34: Quadro - Quantitativo de alunos que participam da Modalidade IC sem bolsa - por área de conhecimento
B35: Áreas de conhecimento | C35: 2020
C36: Execução | D36: Cancelados | E36: Finalizados
B37: Ciências Exatas e da Terra | C37: 6 | D37: - | E37: 1
B38: Ciências Biológicas | C38: 11 | D38: 3 | E38: 2
B39: Engenharias | C39: 7 | D39: - | E39: -
B40: Ciências da Saúde | C40: 1 | D40: 3 | E40: -
B41: Ciências Agrárias | C41: 19 | D41: 2 | E41: 8
B42: Ciências Sociais Aplicadas | C42: 15 | D42: 1 | E42: 10
B43: Ciências Humanas | C43: 14 | D43: 1 | E43: 5
B44: Linguística, Letras e Artes | C44: 10 | D44: - | E44: 8
B45: Total | C45: =SUM(C37:C44) -> 83 | D45: =SUM(D37:D44) -> 10 | E45: =SUM(E37:E44) -> 34
B47: Fonte: Divisão de Pesquisa, janeiro 2021

Sheet Demanda IC 2020
B6: Indicadores da Pró-reitoria de Pesquisa, Pós-graduação e Inovação
B7: Demanda por Bolsas de Iniciação Científica
J9: Página Inicial
B12: Objetivo: Informar a demanda, as concessões de bolsas de iniciação científica e a relação entre elas
B14: Relação bolsa/demanda | D14: PIBIC CNPq/UEMS | F14: =309/404 -> 0.7648514851
D15: PIBITI CNPq | F15: =9/19 -> 0.4736842105
D16: PIBIC AAF | F16: =16/31 -> 0.5161290323
B20: Quadro - Demonstra as demandas e as concessões de bolsas de iniciação científica por modalidade
B21: Áreas de Conhecimento | C21: 2020/21 | F21: 2020/21 | I21: 2020/21
C22: PIBIC CNPq/UEMS | F22: PIBIT CNPq | I22: PIBIC AAF
C23: Inscritos | D23: Demanda qualificada* | E23: Bolsas implantadas** | F23: Inscritos | G23: Demanda qualificada* | H23: Bolsas implantadas | I23: Inscritos | J23: Demanda qualificada* | K23: Bolsas implantadas
B24: Ciências Exatas e da Terra | C24: 55 | D24: 51 | E24: 40 | F24: 5 | G24: 5 | H24: 2 | I24: 3 | J24: 2 | K24: 1
B25: Ciências Biológicas | C25: 30 | D25: 27 | E25: 21 | F25: - | G25: - | H25: - | I25: 2 | J25: 2 | K25: 1
B26: Engenharias | C26: 22 | D26: 17 | E26: 13 | F26: 1 | G26: 1 | H26: 1 | I26: 2 | J26: 2 | K26: 1
B27: Ciências da Saúde | C27: 51 | D27: 45 | E27: 34 | F27: 2 | G27: 2 | H27: 1 | I27: 3 | J27: 3 | K27: 1
B28: Ciências Agrárias | C28: 129 | D28: 124 | E28: 94 | F28: 10 | G28: 10 | H28: 4 | I28: 7 | J28: 7 | K28: 3
B29: Ciências Sociais Aplicadas | C29: 52 | D29: 46 | E29: 36 | F29: - | G29: - | H29: 1 | I29: 10 | J29: 9 | K29: 5
B30: Ciências Humanas | C30: 66 | D30: 64 | E30: 49 | F30: 1 | G30: 1 | H30: - | I30: 6 | J30: 5 | K30: 3
B31: Linguística, Letras e Artes | C31: 35 | D31: 30 | E31: 23 | F31: - | G31: - | H31: - | I31: 1 | J31: 1 | K31: 1
B32: Total | C32: 440 | D32: =SUM(D24:D31) -> 404 | E32: =SUM(E24:E31) -> 310 | F32: 19 | G32: 19 | H32: =SUM(H24:H31) -> 9 | I32: =SUM(I24:I31) -> 34 | J32: =SUM(J24:J31) -> 31 | K32: =SUM(K24:K31) -> 16
B34: *Demanda qualificada se refere a projetos aprovados, aptos a concorrem às bolsas
B35: **Houve um empréstimo de 1 bolsa da PROEC para PIBIC/UEMS
B36: OBS: Período compreendido da bolsa: 1 de agosto a 31 julho do ano posterior
B39: Fonte: Divisão de Pesquisa, janeiro 2021

Sheet Bolsas IC 2020
B5: Indicadores da Pró-reitoria de Pesquisa, Pós-graduação e Inovação
B6: Bolsas de IC disponibilizadas aos alunos de graduação | L6: Histórico Geral IC
L8: Página Inicial
B10: Objetivo: Informar o número de alunos da graduação bolsistas (PIBIC CNPq/UEMS, PIBITI CNPq e PIBIC AAF)
B12: Número absoluto | J12: Quadro - Quantitativo de bolsas de IC disponibilizadas aos alunos de graduação - por Curso
B14: Quadro - Quantitativo de bolsas de IC disponibilizadas aos alunos de graduação - por Unidade Universitária | J14: Unidade Universitária | K14: Curso/Graduação | L14: ago/2020 a jul//21
L15: Aprovadas | M15: Canceladas
B16: Unidade Universitária | C16: ago/2019 a jul/20 | E16: ago/2020 a jul/21 | J16: AMAMBAI | K16: Ciências Sociais | L16: 2 | M16: -
C17: Aprovadas | D17: Canceladas | E17: Aprovadas | F17: Canceladas | K17: História | L17: 2 | M17: -
B18: Aquidauana | C18: 54 | D18: - | E18: 51 | F18: - | J18: AQUIDAUANA | K18: Agronomia | L18: 21 | M18: -
B19: Amambai | C19: 3 | D19: 1 | E19: 4 | F19: - | K19: Engenharia Florestal | L19: 6 | M19: -
B20: Campo Grande | C20: 46 | D20: 1 | E20: 56 | F20: - | K20: Zootecnia | L20: 24 | M20: -
B21: Cassilândia | C21: 39 | D21: - | E21: 36 | F21: - | J21: CAMPO GRANDE | K21: Artes Cênicas | L21: 9 | M21: -
B22: Coxim | C22: 3 | D22: - | E22: 1 | F22: - | K22: Geografia | L22: 21 | M22: -
B23: Dourados | C23: 99 | D23: 3 | E23: 97 | F23: 1 | K23: Geografia Licenciatura | L23: - | M23: -
B24: Glória de Dourados | C24: 2 | D24: - | E24: - | F24: - | K24: Letras Bacharel | L24: 1 | M24: -
B25: Ivinhema | C25: - | D25: - | E25: 2 | F25: - | K25: Letras Port./Inglês | L25: 3 | M25: -
B26: Jardim | C26: 3 | D26: - | E26: 2 | F26: - | K26: Letras Port./Esp. | L26: 1 | M26: -
B27: Maracaju | C27: - | D27: - | E27: - | F27: - | K27: Medicina | L27: 17 | M27: -
B28: Mundo Novo | C28: 16 | D28: - | E28: 19 | F28: - | K28: Pedagogia | L28: 3 | M28: -
B29: Naviraí | C29: 27 | D29: 1 | E29: 32 | F29: - | K29: Turismo | L29: 1 | M29: -
B30: Nova Andradina | C30: 4 | D30: - | E30: - | F30: - | J30: CASSILÂNDIA | K30: Agronomia | L30: 35 | M30: -
B31: Paranaíba | C31: 33 | D31: 4 | E31: 35 | F31: - | K31: Letras | L31: - | M31: -
B32: Ponta Porã | C32: 6 | D32: - | E32: - | F32: - | K32: Matemática | L32: 1 | M32: -
B33: Total | C33: =SUM(C18:C32) -> 335 | D33: =SUM(D18:D32) -> 10 | E33: =SUM(E18:E32) -> 335 | F33: 1 | J33: COXIM | K33: Ciências Biológicas | L33: 0 | M33: -
K34: Gestão Ambiental | L34: 1 | M34: -
J35: DOURADOS | K35: Ciências da Computação | L35: 1 | M35: -
B36: Quadro - Quantitativo de bolsas de IC disponibilizadas aos alunos de graduação - por área do conhecimento | K36: Ciências Biológicas Bacharelado | L36: 8 | M36: -
K37: Ciências Biológicas Licenciatura | L37: - | M37: -
B38: Áreas de Conhecimento | C38: ago/2019 a jul//20 | E38: ago/2020 a jul//2021 | K38: Direito | L38: 5 | M38: -
C39: Aprovadas | D39: Canceladas | E39: Aprovadas | F39: Canceladas | K39: Enfermagem | L39: 26 | M39: -
B40: Ciências Exatas e da Terra | C40: 43 | D40: 1 | E40: 43 | F40: - | K40: Engenharia Ambiental e Sanitária | L40: 12 | M40: -
B41: Ciências Biológicas | C41: 19 | D41: - | E41: 22 | F41: - | K41: Engenharia Física | L41: 12 | M41: -
B42: Engenharias | C42: 18 | D42: - | E42: 15 | F42: - | K42: Física | L42: - | M42: -
B43: Ciências da Saúde | C43: 44 | D43: - | E43: 36 | F43: - | K43: Letras Port./Inglês | L43: 4 | M43: -
B44: Ciências Agrárias | C44: 108 | D44: - | E44: 101 | F44: - | K44: Letras Port./ Espanhol | L44: 6 | M44: -
B45: Ciências Sociais Aplicadas | C45: 43 | D45: 7 | E45: 42 | F45: 1 | K45: Matemática | L45: 2 | M45: -
B46: Ciências Humanas | C46: 25 | D46: 2 | E46: 52 | F46: - | K46: Pedagogia | L46: 9 | M46: -
B47: Linguística, Letras e Artes | C47: 35 | D47: - | E47: 24 | F47: - | K47: Química Licenciatura | L47: - | M47: -
B48: Total | C48: =SUM(C40:C47) -> 335 | D48: =SUM(D40:D47) -> 10 | E48: =SUM(E40:E47) -> 335 | F48: 1 | K48: Química Industrial | L48: 7 | M48: -
K49: Sistema de Informação | L49: 1 | M49: 1
K50: Turismo | L50: 4 | M50: -
B51: Fonte: Divisão de Pesquisa, janeiro 2021 | J51: GLÓRIA DE DOURADOS | K51: Produção Sucroalcooleira | L51: - | M51: -
K52: Tecnologia em Agroecologia | L52: - | M52: -
J53: IVINHEMA | K53: Ciências Biológicas Bacharelado | L53: 2 | M53: -
K54: Ciências Biológicas Licenciatura | L54: - | M54: -
J55: JARDIM | K55: Geografia Licenciatura | L55: 1 | M55: -
K56: Letras Port./Inglês | L56: 1 | M56: -
J57: MARACAJU | K57: Administração | L57: - | M57: -
K58: Pedagogia | L58: - | M58: -
J59: MUNDO NOVO | K59: Ciências Biológicas Licenciatura | L59: 16 | M59: -
K60: Tecnologia Gestão Ambiental | L60: 3 | M60: -
J61: NAVIRAÍ | K61: Química | L61: 14
K62: Engenharia De Alimentos | L62: 11 | M62: -
K63: Direito | L63: 7 | M63: -
J64: NOVA ANDRADINA | K64: Matemática | L64: - | M64: -
K65: Computação | L65: - | M65: -
J66: PARANAÍBA | K66: Ciências Sociais | L66: 8 | M66: -
K67: Ciências Sociais Licenciatura | L67: - | M67: -
K68: Direito | L68: 23 | M68: -
K69: Pedagogia | L69: 4 | M69: -
J70: PONTA PORÃ | K70: Administração de Empresas | L70: - | M70: -
K71: Ciências Contábeis | L71: - | M71: -
K72: Ciências Econômica | L72: - | M72: -
J73: TOTAL | L73: =SUM(L16:L72) -> 335 | M73: 1
J75: Fonte: Divisão de Pesquisa, janeiro 2021

Sheet Bolsistas por UU
B6: Indicadores da Pró-reitoria de Pesquisa, Pós-graduação e Inovação
B7: Percentual de bolsistas de IC por Unidade Universitária
K8: Histórico Geral IC
L9: Página Inicial
B11: Objetivo: Indicar o percentual de bolsistas IC por Unidade Universitária em relação a quantidade total de bolsistas IC da UEMS
B13: Fórmula de Cálculo: Pbu= NBU/NTB *100
B14: NBU: Número de bolsistas IC (PIBIC CNPq/UEMS, PIBIT CNPq, PIBIC AAF) por Unidade Universitária
B15: NTB: número total de bolsistas IC na UEMS
B18: Quadro - Percentual de bolsistas IC na Unidade Universitária em relação ao total de bolsistas IC na UEMS
B19: Unidade Universitária | C19: 2016 | D19: 2017 | E19: 2017/18* | F19: ago/2018 a jul/19 | H19: ago/2019 a jul//20 | J19: ago/2020 a jul/21
F20: Aprovadas | G20: Canceladas | H20: Aprovadas | I20: Canceladas | J20: Aprovadas | K20: Canceladas
B21: Aquidauana | C21: 19.6013289 | D21: 18.24104235 | E21: 19.52861953 | F21: 15.2238806 | G21: 0.5970149254 | H21: 16.11940299 | I21: - | J21: 15.43 | K21: -
B22: Amambai | C22: 1.328903654 | D22: 0.651465798 | E22: 0.3367003367 | F22: 1.791044776 | G22: 0.2985074627 | H22: 0.8955223881 | I22: 0.3 | J22: 1.18 | K22: -
B23: Campo Grande | C23: 9.302325581 | D23: 14.98371336 | E23: 17.17171717 | F23: 16.41791045 | G23: 2.388059701 | H23: 13.73134328 | I23: 0.3 | J23: 16.61 | K23: -
B24: Cassilândia | C24: 15.28239203 | D24: 9.771986971 | E24: 9.764309764 | F24: 10.74626866 | G24: 0.2985074627 | H24: 11.64179104 | I24: - | J24: 10.68 | K24: -
B25: Coxim | C25: 0.3322259136 | D25: 0.325732899 | E25: - | F25: 0.2985074627 | G25: - | H25: 0.8955223881 | I25: - | J25: 0.29 | K25: -
B26: Dourados | C26: 32.55813953 | D26: 30.94462541 | E26: 29.62962963 | F26: 29.55223881 | G26: 0.8955223881 | H26: 29.55223881 | I26: 0.9 | J26: 28.78 | K26: 0.29
B27: Glória de Dourados | C27: 0.3322259136 | D27: 0.325732899 | E27: 0.3367003367 | F27: - | G27: - | H27: 0.5970149254 | I27: - | J27: - | K27: -
B28: Ivinhema | C28: 0.6644518272 | D28: 0.651465798 | E28: 0.6734006734 | F28: 0.5970149254 | G28: - | H28: - | I28: - | J28: 0.59 | K28: -
B29: Jardim | C29: 1.328903654 | D29: - | E29: - | F29: 0.5970149254 | G29: - | H29: 0.8955223881 | I29: - | J29: 0.59 | K29: -
B30: Maracaju | C30: - | D30: - | E30: - | F30: - | G30: - | H30: - | I30: - | J30: - | K30: -
B31: Mundo Novo | C31: 3.65448505 | D31: 4.885993485 | E31: 4.713804714 | F31: 5.074626866 | G31: 0.2985074627 | H31: 4.776119403 | I31: 0 | J31: 5.63 | K31: -
B32: Naviraí | C32: 5.315614618 | D32: 7.491856678 | E32: 7.407407407 | F32: 7.76119403 | G32: 0.5970149254 | H32: 8.059701493 | I32: 0.3 | J32: 9.49 | K32: -
B33: Nova Andradina | C33: 0.3322259136 | D33: 0.651465798 | E33: 0.6734006734 | F33: 0.2985074627 | G33: - | H33: 1.194029851 | I33: - | J33: - | K33: -
B34: Paranaíba | C34: 6.976744186 | D34: 6.840390879 | E34: 6.397306397 | F34: 8.955223881 | G34: 1.194029851 | H34: 9.850746269 | I34: 1.2 | J34: 10.68 | K34: -
B35: Ponta Porã | C35: 2.990033223 | D35: 4.234527687 | E35: 3.367003367 | F35: 1.791044776 | G35: - | H35: 1.791044776 | I35: - | J35: - | K35: -
B36: * Período compreendido da bolsa: 1 de agosto a 31 julho do ano posterior
B39: Quadro – Percentual de bolsas de IC disponibilizadas aos alunos de graduação - por área do conhecimento
B40: Áreas de conhecimento | C40: 2016 | D40: 2017 | E40: 2017/18* | F40: ago/2018 a jul/19 | H40: ago/2019 a jul//20 | J40: ago/2020 a jul/21
F41: Aprovadas | G41: Canceladas | H41: Aprovadas | I41: Canceladas | J41: Aprovadas | K41: Canceladas
B42: Ciências Exatas e da Terra | C42: 12.95681063 | D42: 13.95348837 | E42: 14.47811448 | F42: 15.2238806 | G42: 0.8955223881 | H42: 12.8358209 | I42: 0.3 | J42: 12.7 | K42: -
B43: Ciências Biológicas | C43: 4.983388704 | D43: 4.983388704 | E43: 4.713804714 | F43: 5.373134328 | G43: - | H43: 5.671641791 | I43: - | J43: 6.8 | K43: -
B44: Engenharias | C44: 12.62458472 | D44: 8.637873754 | E44: 8.417508418 | F44: 5.970149254 | G44: - | H44: 5.373134328 | I44: - | J44: 4.4 | K44: -
B45: Ciências da Saúde | C45: 6.976744186 | D45: 15.15151515 | E45: 14.6179402 | F45: 12.53731343 | G45: 0.8955223881 | H45: 13.13432836 | I45: - | J45: 10.6 | K45: -
B46: Ciências Agrárias | C46: 35.54817276 | D46: 34.68013468 | E46: 34.55149502 | F46: 31.04477612 | G46: 0.8955223881 | H46: 32.23880597 | I46: - | J46: 29.9 | K46: -
B47: Ciências Sociais e Aplicadas | C47: 9.966777409 | D47: 10.77441077 | E47: 12.62458472 | F47: 11.94029851 | G47: 2.686567164 | H47: 12.8358209 | I47: 2.1 | J47: 12.7 | K47: 0.29
B48: Ciências Humanas | C48: 8.970099668 | D48: 7.407407407 | E48: 8.637873754 | F48: 8.955223881 | G48: 1.194029851 | H48: 7.462686567 | I48: 0.6 | J48: 15.4 | K48: -
B49: Linguística, Letras e Artes | C49: 7.973421927 | D49: 4.377104377 | E49: 3.986710963 | F49: 8.059701493 | G49: - | H49: 10.44776119 | I49: - | J49: 7.1 | K49: -
B50: * Período compreendido da bolsa: 1 de agosto a 31 julho do ano posterior
B52: Fonte: Divisão de Pesquisa, janeiro 2021

Sheet Histórico IC
B5: Indicadores da Pró-reitoria de Pesquisa, Pós-graduação e Inovação
B6: Resumo dos dados sobre Iniciação Científica
J7: Gráficos
J8: Página Inicial
B10: Objetivo: Apresentar a série histórica envolvendo a Iniciação Científica com e sem bolsa
B12: Quadro - Histórico de bolsas de IC disponibilizadas aos alunos de graduação - por área de conhecimento
B13: Áreas de Conhecimento | C13: 2017/18 | D13: 2018/19 | E13: 2019/20 | F13: 2020/21
B14: Ciências Exatas e da Terra | C14: 43 | D14: 48 | E14: 43 | F14: 43
B15: Ciências Biológicas | C15: 15 | D15: 18 | E15: 19 | F15: 22
B16: Engenharias | C16: 26 | D16: 20 | E16: 18 | F16: 15
B17: Ciências da Saúde | C17: 44 | D17: 41 | E17: 44 | F17: 36
B18: Ciências Agrárias | C18: 105 | D18: 101 | E18: 108 | F18: 101
B19: Ciências Sociais Aplicadas | C19: 37 | D19: 31 | E19: 40 | F19: 42
B20: Ciências Humanas | C20: 24 | D20: 27 | E20: 25 | F20: 52
B21: Linguística, Letras e Artes | C21: 13 | D21: 27 | E21: 35 | F21: 24
B22: Total | C22: =SUM(C14:C21) -> 307 | D22: 335 | E22: 335 | F22: =SUM(F14:F21) -> 335
B23: OBS: Período compreendido da bolsa: 1 de agosto a 31 julho do ano posterior
B26: Quadro - Histórico de bolsas de Iniciação Científica - por modalidade
B27: Modalidade/Fonte | C27: 2017/2018 | D27: 2018/2019 | E27: 2019/2020 | F27: 2020/21
B28: PIBIC CNPq | C28: 60 | D28: 60 | E28: 60 | F28: 60
B29: PIBIC UEMS* | C29: 220 | D29: 250 | E29: 251 | F29: 251
B30: PIBITI CNPq | C30: 9 | D30: 9 | E30: 9 | F30: 9
B31: PIBITI UEMS | C31: 2 | D31: - | E31: - | F31: -
B32: PIBIC AAF | C32: 16 | D32: 16 | E32: 16 | F32: 15
B33: Total | C33: =SUM(C28:C32) -> 307 | D33: =SUM(D28:D32) -> 335 | E33: =SUM(E28:E32) -> 336 | F33: =SUM(F28:F32) -> 335
B34: OBS: Período compreendido da bolsa: 1 de agosto a 31 julho do ano posterior
B35: *Empréstimo entre editais; 2020/2021 de 1 bolsa empréstimo da PROEC; 2017/2018 3 bolsas; 2019/2020 1 bolsa
B38: Quadro - Histórico do quantitativo de alunos na Modalidade IC sem bolsa - por área de conhecimento
B39: Áreas de conhecimento | C39: 2016 | D39: 2017 | E39: 2018 | F39: 2019 | G39: 2020
B40: Ciências Exatas e da Terra | C40: 11 | D40: 11 | E40: 17 | F40: 8 | G40: 6
B41: Ciências Biológicas | C41: 6 | D41: 3 | E41: 7 | F41: 6 | G41: 11
B42: Engenharias | C42: 14 | D42: 1 | E42: 2 | F42: 3 | G42: 7
B43: Ciências da Saúde | C43: 4 | D43: 2 | E43: 3 | F43: 5 | G43: 1
B44: Ciências Agrárias | C44: 11 | D44: 3 | E44: 11 | F44: 22 | G44: 19
B45: Ciências Sociais Aplicadas | C45: 14 | D45: 4 | E45: 8 | F45: 17 | G45: 15
B46: Ciências Humanas | C46: 11 | D46: 8 | E46: 18 | F46: 15 | G46: 14
B47: Linguística, Letras e Artes | C47: 21 | D47: 15 | E47: 16 | F47: 19 | G47: 10
B48: Total | C48: 92 | D48: 47 | E48: 82 | F48: 95 | G48: 83
B49: OBS: IC modalidade sem bolsa em execução
B52: Fonte: Divisão de Pesquisa, janeiro 2021

Sheet Gráficos IC
B5: Indicadores da Pró-reitoria de Pesquisa, Pós-graduação e Inovação
G6: Gráficos da evolução das quantidades de IC
Q7: Página Inicial
B11: Evolução da quantidade de bolsas de IC disponibilizadas aos discentes - por área do conhecimento | L11: Evolução da quantidade de bolsas de IC por modalidade
B29: Evolução da quantidade de alunos na modalidade sem bolsa
